[Event "Late-Titled-Tuesday-Blitz-February-27-2024"]
[Site "Chess.com"]
[Date "2024.02.27"]
[Round "11"]
[White "sergiochess83"]
[Black "lamomiajunior"]
[Result "1-0"]
[WhiteElo "2898"]
[BlackElo "2733"]
[TimeControl "180+1"]
[EndTime "16:05:27 PST"]
[Termination "sergiochess83 won by resignation"]

1. e4 {[%clk 0:03:00.9]} 1... c5 {[%clk 0:02:59.2]} 2. Nc3 {[%clk 0:02:58.7]}
2... d6 {[%clk 0:02:58.5]} 3. f4 {[%clk 0:02:57.4]} 3... g6 {[%clk 0:02:57.6]}
4. Nf3 {[%clk 0:02:57.4]} 4... Bg7 {[%clk 0:02:58.1]} 5. d4 {[%clk 0:02:57.3]}
5... cxd4 {[%clk 0:02:57]} 6. Nxd4 {[%clk 0:02:58.2]} 6... Nc6 {[%clk
0:02:55.7]} 7. Be3 {[%clk 0:02:56.9]} 7... Nf6 {[%clk 0:02:55.2]} 8. Be2 {[%clk
0:02:55.8]} 8... O-O {[%clk 0:02:55]} 9. O-O {[%clk 0:02:55.4]} 9... Bd7 {[%clk
0:02:54.6]} 10. Nb3 {[%clk 0:02:53.5]} 10... Rc8 {[%clk 0:02:53.9]} 11. Kh1
{[%clk 0:02:52.6]} 11... a6 {[%clk 0:02:52.2]} 12. a4 {[%clk 0:02:45.6]} 12...
Na5 {[%clk 0:02:50.1]} 13. e5 {[%clk 0:02:41]} 13... Ne8 {[%clk 0:02:42.2]} 14.
Nd5 {[%clk 0:02:40.5]} 14... Nc4 {[%clk 0:01:57.5]} 15. Bxc4 {[%clk 0:02:31.8]}
15... Rxc4 {[%clk 0:01:58.4]} 16. Bb6 {[%clk 0:02:29.3]} 16... Qb8 {[%clk
0:01:57.1]} 17. Nd2 {[%clk 0:02:22.6]} 17... Rc6 {[%clk 0:01:42.4]} 18. Nxe7+
{[%clk 0:02:20.7]} 18... Kh8 {[%clk 0:01:43.3]} 19. Nxc6 {[%clk 0:02:21.6]}
19... Bxc6 {[%clk 0:01:43.7]} 20. Nc4 {[%clk 0:02:17.9]} 20... dxe5 {[%clk
0:01:40.2]} 21. Nxe5 {[%clk 0:02:18]} 21... Nf6 {[%clk 0:01:35.1]} 22. Nxc6
{[%clk 0:02:14.7]} 22... bxc6 {[%clk 0:01:36]} 23. a5 {[%clk 0:02:15]} 23... Ne4
{[%clk 0:01:33.4]} 24. Qd3 {[%clk 0:02:01.8]} 24... f5 {[%clk 0:01:32.5]} 25.
Qxa6 {[%clk 0:02:01.8]} 25... c5 {[%clk 0:01:30]} 26. c3 {[%clk 0:01:57.1]}
26... Qd6 {[%clk 0:01:25.5]} 27. Qe2 {[%clk 0:01:40.6]} 27... Qe7 {[%clk
0:01:23]} 28. Rae1 {[%clk 0:01:28]} 28... Qb7 {[%clk 0:01:20.6]} 29. Qf3 {[%clk
0:01:25.9]} 29... c4 {[%clk 0:01:17.9]} 30. Re2 {[%clk 0:01:23.4]} 30... Qc6
{[%clk 0:01:14.7]} 31. Rd1 {[%clk 0:01:19.2]} 31... Re8 {[%clk 0:01:14.1]} 32.
Kg1 {[%clk 0:01:18.3]} 32... Bf6 {[%clk 0:01:11.7]} 33. h3 {[%clk 0:01:13.8]}
33... Be7 {[%clk 0:01:06.3]} 34. Qe3 {[%clk 0:01:02]} 34... Kg8 {[%clk
0:01:01.9]} 35. Qd4 {[%clk 0:00:59]} 35... Rb8 {[%clk 0:00:50]} 36. Qd5+ {[%clk
0:00:55.7]} 36... Qxd5 {[%clk 0:00:50]} 37. Rxd5 {[%clk 0:00:56.6]} 37... Kf7
{[%clk 0:00:50.4]} 38. Rd4 {[%clk 0:00:50.9]} 38... Ke6 {[%clk 0:00:36.3]} 39.
Rdxe4+ {[%clk 0:00:49.8]} 39... fxe4 {[%clk 0:00:36.3]} 40. Rxe4+ {[%clk
0:00:50.7]} 40... Kd6 {[%clk 0:00:34.7]} 41. Rxc4 {[%clk 0:00:49.8]} 41... Kd5
{[%clk 0:00:35.2]} 42. Rd4+ {[%clk 0:00:49.3]} 42... Kc6 {[%clk 0:00:35.5]} 43.
Re4 {[%clk 0:00:46.4]} 43... Bd6 {[%clk 0:00:34.5]} 44. Kf2 {[%clk 0:00:45.1]}
44... Kd5 {[%clk 0:00:34.1]} 45. Kf3 {[%clk 0:00:45.3]} 45... Rf8 {[%clk
0:00:33]} 46. g3 {[%clk 0:00:45.3]} 46... g5 {[%clk 0:00:33]} 47. b4 {[%clk
0:00:43.3]} 47... h5 {[%clk 0:00:32.6]} 48. Rd4+ {[%clk 0:00:42.9]} 48... Kc6
{[%clk 0:00:32.6]} 49. Rxd6+ {[%clk 0:00:43.2]} 49... Kxd6 {[%clk 0:00:32.4]}
50. Bc5+ {[%clk 0:00:43.1]} 1-0

[Event "Late-Titled-Tuesday-Blitz-February-27-2024"]
[Site "Chess.com"]
[Date "2024.02.27"]
[Round "11"]
[White "DryCounty"]
[Black "rikchessmx"]
[Result "1-0"]
[WhiteElo "2642"]
[BlackElo "2269"]
[TimeControl "180+1"]
[EndTime "16:05:28 PST"]
[Termination "DryCounty won by checkmate"]

1. e4 {[%clk 0:03:00.9]} 1... e5 {[%clk 0:02:59.5]} 2. Nf3 {[%clk 0:02:59.9]}
2... Nc6 {[%clk 0:03:00]} 3. Bb5 {[%clk 0:02:59.6]} 3... a6 {[%clk 0:02:57.4]}
4. Ba4 {[%clk 0:02:59.5]} 4... Nf6 {[%clk 0:02:57.2]} 5. O-O {[%clk 0:03:00]}
5... Be7 {[%clk 0:02:56.7]} 6. Re1 {[%clk 0:02:59.1]} 6... b5 {[%clk 0:02:56.5]}
7. Bb3 {[%clk 0:02:59.1]} 7... O-O {[%clk 0:02:56.5]} 8. d4 {[%clk 0:02:58.8]}
8... d6 {[%clk 0:02:55.8]} 9. c3 {[%clk 0:02:58.1]} 9... Bb7 {[%clk 0:02:54.2]}
10. Nbd2 {[%clk 0:02:56.6]} 10... Nd7 {[%clk 0:02:53.6]} 11. Nf1 {[%clk
0:02:55.4]} 11... Bf6 {[%clk 0:02:53.6]} 12. Ne3 {[%clk 0:02:53.6]} 12... exd4
{[%clk 0:02:51.5]} 13. cxd4 {[%clk 0:02:53.1]} 13... Re8 {[%clk 0:02:50.3]} 14.
Nd5 {[%clk 0:02:41.9]} 14... Na5 {[%clk 0:02:45.9]} 15. Bc2 {[%clk 0:02:22.6]}
15... Bxd5 {[%clk 0:02:44.4]} 16. exd5 {[%clk 0:02:21.9]} 16... Nb6 {[%clk
0:02:41]} 17. b3 {[%clk 0:02:18.3]} 17... Nxd5 {[%clk 0:02:34]} 18. Bd2 {[%clk
0:02:15.3]} 18... Nc6 {[%clk 0:02:27.9]} 19. Be4 {[%clk 0:02:06.3]} 19... Nde7
{[%clk 0:02:23.5]} 20. Qc2 {[%clk 0:02:02.5]} 20... d5 {[%clk 0:02:23.1]} 21.
Bxh7+ {[%clk 0:02:01.2]} 21... Kh8 {[%clk 0:02:22.5]} 22. Bd3 {[%clk 0:01:15.9]}
22... Nxd4 {[%clk 0:02:21.7]} 23. Nxd4 {[%clk 0:01:14.4]} 23... Bxd4 {[%clk
0:02:21.8]} 24. Rac1 {[%clk 0:01:14.7]} 24... c5 {[%clk 0:02:18.9]} 25. Bg5
{[%clk 0:01:10.1]} 25... c4 {[%clk 0:02:12.9]} 26. bxc4 {[%clk 0:01:00]} 26...
bxc4 {[%clk 0:02:09.2]} 27. Qa4 {[%clk 0:00:58.4]} 27... f6 {[%clk 0:02:00.4]}
28. Bh4 {[%clk 0:00:51.1]} 28... Ng8 {[%clk 0:01:46.8]} 29. Bg6 {[%clk
0:00:37.9]} 29... Re5 {[%clk 0:01:36.6]} 30. Rxe5 {[%clk 0:00:33.6]} 30... Bxe5
{[%clk 0:01:35.4]} 31. Qd1 {[%clk 0:00:33.2]} 31... Nh6 {[%clk 0:01:27.3]} 32.
Bb1 {[%clk 0:00:32.7]} 32... Qd6 {[%clk 0:01:24.4]} 33. Qc2 {[%clk 0:00:27]}
33... f5 {[%clk 0:01:24.3]} 34. g3 {[%clk 0:00:22.5]} 34... Rf8 {[%clk
0:01:21.8]} 35. Rd1 {[%clk 0:00:18.3]} 35... g6 {[%clk 0:01:16.5]} 36. Qe2
{[%clk 0:00:18]} 36... Ng4 {[%clk 0:01:07.7]} 37. h3 {[%clk 0:00:17.2]} 37...
Nf6 {[%clk 0:01:07.3]} 38. Bg5 {[%clk 0:00:16.9]} 38... Ne4 {[%clk 0:01:06.9]}
39. Be3 {[%clk 0:00:16.4]} 39... Rd8 {[%clk 0:01:03.7]} 40. Kg2 {[%clk
0:00:16.2]} 40... Bxg3 {[%clk 0:01:03.4]} 41. Bxe4 {[%clk 0:00:14.9]} 41... f4
{[%clk 0:00:56.9]} 42. Rxd5 {[%clk 0:00:13.8]} 42... Qf8 {[%clk 0:00:56.1]} 43.
Bd4+ {[%clk 0:00:13.2]} 43... Kh7 {[%clk 0:00:55.2]} 44. Rxd8 {[%clk 0:00:11]}
44... Qxd8 {[%clk 0:00:55.2]} 45. Qxc4 {[%clk 0:00:11.5]} 45... Bh4 {[%clk
0:00:53.9]} 46. Qf7+ {[%clk 0:00:11.3]} 46... Kh6 {[%clk 0:00:53.6]} 47. Qxg6#
{[%clk 0:00:11.2]} 1-0

[Event "Late-Titled-Tuesday-Blitz-February-27-2024"]
[Site "Chess.com"]
[Date "2024.02.27"]
[Round "11"]
[White "pfalcon1949"]
[Black "lluiss"]
[Result "1-0"]
[WhiteElo "1931"]
[BlackElo "2111"]
[TimeControl "180+1"]
[EndTime "16:05:30 PST"]
[Termination "pfalcon1949 won on time"]

1. e4 {[%clk 0:03:00.9]} 1... c5 {[%clk 0:02:51]} 2. Nf3 {[%clk 0:02:59.9]} 2...
d6 {[%clk 0:02:51.2]} 3. d4 {[%clk 0:03:00.3]} 3... cxd4 {[%clk 0:02:52.1]} 4.
Nxd4 {[%clk 0:02:59.9]} 4... Nf6 {[%clk 0:02:52.6]} 5. Nc3 {[%clk 0:02:59.7]}
5... g6 {[%clk 0:02:53.2]} 6. Be3 {[%clk 0:02:58.8]} 6... Bg7 {[%clk 0:02:53.6]}
7. f3 {[%clk 0:02:59.1]} 7... O-O {[%clk 0:02:54.1]} 8. Bc4 {[%clk 0:02:59.1]}
8... Nc6 {[%clk 0:02:54.7]} 9. Qe2 {[%clk 0:02:57.4]} 9... Nxd4 {[%clk 0:02:52]}
10. Bxd4 {[%clk 0:02:55.4]} 10... Be6 {[%clk 0:02:52.9]} 11. Bb3 {[%clk
0:02:53.9]} 11... Qa5 {[%clk 0:02:46.4]} 12. O-O-O {[%clk 0:02:52.7]} 12... Bxb3
{[%clk 0:02:44]} 13. cxb3 {[%clk 0:02:51.7]} 13... Rfc8 {[%clk 0:02:43.8]} 14.
Kb1 {[%clk 0:02:50.8]} 14... Rc6 {[%clk 0:02:42.5]} 15. g4 {[%clk 0:02:44.9]}
15... Rac8 {[%clk 0:02:41.4]} 16. h4 {[%clk 0:02:41.8]} 16... Nd7 {[%clk
0:02:29.5]} 17. Bxg7 {[%clk 0:02:37.7]} 17... Kxg7 {[%clk 0:02:30.4]} 18. h5
{[%clk 0:02:38.2]} 18... g5 {[%clk 0:01:57.5]} 19. h6+ {[%clk 0:02:21.1]} 19...
Kh8 {[%clk 0:01:50.7]} 20. Qe3 {[%clk 0:02:20.5]} 20... f6 {[%clk 0:01:45.9]}
21. Nd5 {[%clk 0:02:13.9]} 21... e6 {[%clk 0:01:42.2]} 22. Ne7 {[%clk
0:02:08.5]} 22... Ra6 {[%clk 0:01:36.2]} 23. a3 {[%clk 0:01:53.6]} 23... Re8
{[%clk 0:01:25.2]} 24. b4 {[%clk 0:01:36.1]} 24... Qe5 {[%clk 0:01:24.7]} 25.
Nd5 {[%clk 0:01:17.3]} 25... exd5 {[%clk 0:01:22.9]} 26. Rxd5 {[%clk 0:01:18.2]}
26... Qf4 {[%clk 0:01:19]} 27. Qd4 {[%clk 0:01:07]} 27... Qxf3 {[%clk
0:01:15.3]} 28. Re1 {[%clk 0:00:59.8]} 28... Qg3 {[%clk 0:01:00.9]} 29. Rf1
{[%clk 0:00:51.4]} 29... Re5 {[%clk 0:00:56.4]} 30. Rxd6 {[%clk 0:00:46.3]}
30... Rxd6 {[%clk 0:00:44.3]} 31. Qxd6 {[%clk 0:00:44.5]} 31... Qxg4 {[%clk
0:00:42.9]} 32. Rxf6 {[%clk 0:00:35.1]} 32... Qxe4+ {[%clk 0:00:42.6]} 33. Ka1
{[%clk 0:00:29.3]} 1-0

[Event "Late-Titled-Tuesday-Blitz-February-27-2024"]
[Site "Chess.com"]
[Date "2024.02.27"]
[Round "11"]
[White "Boninknights"]
[Black "dosto07"]
[Result "0-1"]
[WhiteElo "2397"]
[BlackElo "2513"]
[TimeControl "180+1"]
[EndTime "16:05:32 PST"]
[Termination "dosto07 won by resignation"]

1. d4 {[%clk 0:02:56.2]} 1... Nf6 {[%clk 0:02:59.8]} 2. Nf3 {[%clk 0:02:55]}
2... d5 {[%clk 0:02:57.5]} 3. c4 {[%clk 0:02:53.5]} 3... dxc4 {[%clk 0:02:57.8]}
4. e3 {[%clk 0:02:52.5]} 4... e6 {[%clk 0:02:56.5]} 5. Bxc4 {[%clk 0:02:51.2]}
5... c5 {[%clk 0:02:55.5]} 6. dxc5 {[%clk 0:02:50]} 6... Qxd1+ {[%clk
0:02:52.5]} 7. Kxd1 {[%clk 0:02:49.2]} 7... Bxc5 {[%clk 0:02:53.3]} 8. Ke2
{[%clk 0:02:46.8]} 8... Nc6 {[%clk 0:02:40.1]} 9. a3 {[%clk 0:02:46]} 9... Bd6
{[%clk 0:02:34.7]} 10. Nbd2 {[%clk 0:02:43.6]} 10... Bd7 {[%clk 0:02:31.8]} 11.
Bd3 {[%clk 0:02:40.6]} 11... Ne5 {[%clk 0:02:16.9]} 12. Nxe5 {[%clk 0:02:39.1]}
12... Bxe5 {[%clk 0:02:17.5]} 13. Nc4 {[%clk 0:02:38.1]} 13... Bc7 {[%clk
0:02:17.4]} 14. Bd2 {[%clk 0:02:31.1]} 14... Bc6 {[%clk 0:02:17.6]} 15. f3
{[%clk 0:02:29.5]} 15... Rd8 {[%clk 0:02:10.2]} 16. Bc3 {[%clk 0:02:24.3]} 16...
O-O {[%clk 0:02:06.8]} 17. Ne5 {[%clk 0:02:18.4]} 17... Ba4 {[%clk 0:02:00]} 18.
e4 {[%clk 0:02:10.3]} 18... Nd7 {[%clk 0:01:42.9]} 19. Nxd7 {[%clk 0:02:04.4]}
19... Rxd7 {[%clk 0:01:43.2]} 20. b3 {[%clk 0:01:58.8]} 20... Rfd8 {[%clk
0:01:28]} 21. Bc4 {[%clk 0:01:50.5]} 21... b5 {[%clk 0:01:09.9]} 22. bxa4 {[%clk
0:01:38.6]} 22... bxc4 {[%clk 0:01:10.3]} 23. g3 {[%clk 0:01:31.7]} 23... Rd3
{[%clk 0:01:09.3]} 24. Rhc1 {[%clk 0:01:28.2]} 24... Bb6 {[%clk 0:01:08.3]} 25.
f4 {[%clk 0:01:12.3]} 25... Re3+ {[%clk 0:01:05.4]} 26. Kf1 {[%clk 0:01:12]}
26... Rxe4 {[%clk 0:01:00.5]} 27. a5 {[%clk 0:01:10.6]} 27... Bc5 {[%clk
0:00:55.7]} 28. Rd1 {[%clk 0:01:05]} 28... Rd5 {[%clk 0:00:55.4]} 29. Rab1
{[%clk 0:00:59.3]} 29... h5 {[%clk 0:00:53]} 30. Rb8+ {[%clk 0:00:51.4]} 30...
Kh7 {[%clk 0:00:52.5]} 31. Re1 {[%clk 0:00:49]} 31... Rxe1+ {[%clk 0:00:49.9]}
32. Kxe1 {[%clk 0:00:43.9]} 32... Rd3 {[%clk 0:00:45.7]} 33. Bb4 {[%clk
0:00:43.4]} 33... Bd4 {[%clk 0:00:37.5]} 34. Ke2 {[%clk 0:00:37.2]} 34... Rb3
{[%clk 0:00:37.2]} 35. Rc8 {[%clk 0:00:34.7]} 35... c3 {[%clk 0:00:35.5]} 36.
Kd3 {[%clk 0:00:33.8]} 36... Bf6 {[%clk 0:00:35.3]} 37. Bxc3 {[%clk 0:00:28.2]}
37... Rxa3 {[%clk 0:00:34.2]} 38. Kc2 {[%clk 0:00:20.4]} 38... Bxc3 {[%clk
0:00:32.8]} 39. Rxc3 {[%clk 0:00:19.6]} 39... Rxa5 {[%clk 0:00:33.2]} 40. Rc7
{[%clk 0:00:18.2]} 40... Kg6 {[%clk 0:00:32.9]} 0-1

[Event "Late-Titled-Tuesday-Blitz-February-27-2024"]
[Site "Chess.com"]
[Date "2024.02.27"]
[Round "11"]
[White "sotochess"]
[Black "GMKrikor"]
[Result "0-1"]
[WhiteElo "2652"]
[BlackElo "2848"]
[TimeControl "180+1"]
[EndTime "16:05:33 PST"]
[Termination "GMKrikor won by resignation"]

1. e4 {[%clk 0:03:00]} 1... c5 {[%clk 0:02:59.6]} 2. Nf3 {[%clk 0:02:59.9]} 2...
Nc6 {[%clk 0:03:00.3]} 3. Bb5 {[%clk 0:02:54]} 3... Nf6 {[%clk 0:02:59.6]} 4. e5
{[%clk 0:02:51.9]} 4... Nd5 {[%clk 0:02:59.6]} 5. O-O {[%clk 0:02:51.8]} 5...
Nc7 {[%clk 0:02:59.9]} 6. a4 {[%clk 0:02:50.8]} 6... g6 {[%clk 0:02:58.2]} 7.
Re1 {[%clk 0:02:50.7]} 7... Bg7 {[%clk 0:02:58.3]} 8. c3 {[%clk 0:02:50]} 8...
O-O {[%clk 0:02:37.1]} 9. Bc4 {[%clk 0:02:49.3]} 9... d5 {[%clk 0:02:30.4]} 10.
exd6 {[%clk 0:02:49.1]} 10... Qxd6 {[%clk 0:02:30.6]} 11. d3 {[%clk 0:02:44.6]}
11... Bf5 {[%clk 0:02:30.1]} 12. Na3 {[%clk 0:02:22.8]} 12... a6 {[%clk
0:02:27.7]} 13. Qe2 {[%clk 0:02:16.2]} 13... Rad8 {[%clk 0:02:23.4]} 14. Rd1
{[%clk 0:02:11.2]} 14... Na5 {[%clk 0:02:17.8]} 15. Bg5 {[%clk 0:02:06.3]} 15...
Rfe8 {[%clk 0:02:18]} 16. d4 {[%clk 0:02:02.5]} 16... Ne6 {[%clk 0:01:42.3]} 17.
dxc5 {[%clk 0:01:56.9]} 17... Qc7 {[%clk 0:01:35.2]} 18. Bxe6 {[%clk 0:01:50.3]}
18... Bxe6 {[%clk 0:01:35]} 19. Nd4 {[%clk 0:01:31.3]} 19... Bxd4 {[%clk
0:01:07.3]} 20. cxd4 {[%clk 0:00:52.4]} 20... Nb3 {[%clk 0:01:05.5]} 21. Be3
{[%clk 0:00:52.2]} 21... Nxa1 {[%clk 0:01:03.1]} 22. Rxa1 {[%clk 0:00:52]} 22...
Bb3 {[%clk 0:00:52.1]} 23. Nb1 {[%clk 0:00:51.4]} 23... e5 {[%clk 0:00:48.4]}
24. Nd2 {[%clk 0:00:49.2]} 24... Bd5 {[%clk 0:00:47.3]} 25. dxe5 {[%clk
0:00:47.1]} 25... Qxe5 {[%clk 0:00:46.1]} 26. Nf1 {[%clk 0:00:32.5]} 26... Qe4
{[%clk 0:00:40.5]} 27. f3 {[%clk 0:00:29.7]} 27... Qb4 {[%clk 0:00:38.1]} 28.
Qf2 {[%clk 0:00:25]} 28... Bc4 {[%clk 0:00:34.6]} 29. Bg5 {[%clk 0:00:24.8]}
29... Rd5 {[%clk 0:00:30.4]} 30. h4 {[%clk 0:00:21.5]} 30... Qxc5 {[%clk
0:00:29.9]} 31. Ne3 {[%clk 0:00:20.9]} 31... Rxg5 {[%clk 0:00:27.8]} 32. hxg5
{[%clk 0:00:20.2]} 32... Qxe3 {[%clk 0:00:27.6]} 33. Qxe3 {[%clk 0:00:17.3]}
33... Rxe3 {[%clk 0:00:28.5]} 34. Rc1 {[%clk 0:00:17.5]} 34... Be6 {[%clk
0:00:28.1]} 35. Rc7 {[%clk 0:00:15.8]} 35... Rb3 {[%clk 0:00:27.2]} 0-1

[Event "Late-Titled-Tuesday-Blitz-February-27-2024"]
[Site "Chess.com"]
[Date "2024.02.27"]
[Round "11"]
[White "Alex_Sahakyan2006"]
[Black "Zq1"]
[Result "1-0"]
[WhiteElo "2809"]
[BlackElo "2633"]
[TimeControl "180+1"]
[EndTime "16:05:39 PST"]
[Termination "Alex_Sahakyan2006 won by resignation"]

1. e4 {[%clk 0:02:32.7]} 1... c5 {[%clk 0:02:58.9]} 2. Nc3 {[%clk 0:02:32.2]}
2... g6 {[%clk 0:02:57.5]} 3. d4 {[%clk 0:02:29]} 3... cxd4 {[%clk 0:02:56.4]}
4. Qxd4 {[%clk 0:02:29.9]} 4... Nf6 {[%clk 0:02:54.9]} 5. Nf3 {[%clk 0:02:30.4]}
5... Nc6 {[%clk 0:02:50.8]} 6. Qa4 {[%clk 0:02:30.6]} 6... d6 {[%clk 0:02:51.1]}
7. e5 {[%clk 0:02:30.8]} 7... dxe5 {[%clk 0:02:51.3]} 8. Nxe5 {[%clk 0:02:31.7]}
8... Bd7 {[%clk 0:02:51.3]} 9. Nxd7 {[%clk 0:02:31.6]} 9... Qxd7 {[%clk
0:02:51.2]} 10. Bb5 {[%clk 0:02:30.1]} 10... Bg7 {[%clk 0:02:49.9]} 11. O-O
{[%clk 0:02:30.2]} 11... O-O {[%clk 0:02:49.2]} 12. Rd1 {[%clk 0:02:29.8]} 12...
Qc8 {[%clk 0:02:47.6]} 13. Bg5 {[%clk 0:02:25.5]} 13... a6 {[%clk 0:02:45.8]}
14. Bxc6 {[%clk 0:02:24.6]} 14... Qxc6 {[%clk 0:02:45.3]} 15. Qxc6 {[%clk
0:02:23.9]} 15... bxc6 {[%clk 0:02:44.9]} 16. Na4 {[%clk 0:02:18.9]} 16... h6
{[%clk 0:02:37.6]} 17. Bxf6 {[%clk 0:02:11.1]} 17... Bxf6 {[%clk 0:02:36.6]} 18.
Nb6 {[%clk 0:02:03.9]} 18... Rab8 {[%clk 0:01:58.4]} 19. Nd7 {[%clk 0:02:02.2]}
19... Rxb2 {[%clk 0:01:58]} 20. Nxf8 {[%clk 0:01:54.8]} 20... Kxf8 {[%clk
0:01:53.9]} 21. a4 {[%clk 0:01:48.1]} 21... Rxc2 {[%clk 0:01:48.1]} 22. Rac1
{[%clk 0:01:47.8]} 22... Ra2 {[%clk 0:01:47.7]} 23. Rc4 {[%clk 0:01:43.3]} 23...
c5 {[%clk 0:01:46.9]} 24. Rxc5 {[%clk 0:01:36.1]} 24... Rxa4 {[%clk 0:01:46]}
25. g3 {[%clk 0:01:28.1]} 25... h5 {[%clk 0:01:43.6]} 26. Kg2 {[%clk 0:01:22]}
26... Bd4 {[%clk 0:01:36.9]} 27. Rd5 {[%clk 0:01:14.8]} 27... e5 {[%clk
0:01:33.6]} 28. f4 {[%clk 0:01:14.9]} 28... Ra2+ {[%clk 0:01:21]} 29. Kh3 {[%clk
0:01:13.4]} 29... Bc3 {[%clk 0:01:05.6]} 30. Rc1 {[%clk 0:01:08.5]} 30... Bd2
{[%clk 0:00:49.4]} 31. Rd1 {[%clk 0:00:53]} 31... Be3 {[%clk 0:00:48.7]} 32.
Rxe5 {[%clk 0:00:50.7]} 32... Bf2 {[%clk 0:00:39.4]} 33. f5 {[%clk 0:00:38.6]}
33... Kg7 {[%clk 0:00:29.4]} 34. fxg6 {[%clk 0:00:37.2]} 34... fxg6 {[%clk
0:00:22.2]} 35. Re6 {[%clk 0:00:36.9]} 35... Kf7 {[%clk 0:00:19.6]} 36. Rc6
{[%clk 0:00:35]} 36... g5 {[%clk 0:00:16.8]} 37. Rd7+ {[%clk 0:00:32.7]} 37...
Ke8 {[%clk 0:00:16.6]} 38. Rh7 {[%clk 0:00:31.9]} 38... g4+ {[%clk 0:00:12.8]}
39. Kh4 {[%clk 0:00:31.9]} 39... Kd8 {[%clk 0:00:12.4]} 40. Rg6 {[%clk
0:00:29.6]} 1-0

[Event "Late-Titled-Tuesday-Blitz-February-27-2024"]
[Site "Chess.com"]
[Date "2024.02.27"]
[Round "11"]
[White "AlexeiShirov"]
[Black "Malev212"]
[Result "1-0"]
[WhiteElo "2840"]
[BlackElo "2641"]
[TimeControl "180+1"]
[EndTime "16:05:45 PST"]
[Termination "AlexeiShirov won by resignation"]

1. e4 {[%clk 0:03:00.9]} 1... g6 {[%clk 0:02:53.5]} 2. d4 {[%clk 0:02:59.5]}
2... Bg7 {[%clk 0:02:53.3]} 3. Nc3 {[%clk 0:02:59.7]} 3... c5 {[%clk 0:02:53.1]}
4. dxc5 {[%clk 0:02:57.6]} 4... Bxc3+ {[%clk 0:02:51.4]} 5. bxc3 {[%clk
0:02:56.5]} 5... Nf6 {[%clk 0:02:47.1]} 6. e5 {[%clk 0:02:54.3]} 6... Ne4 {[%clk
0:02:45.8]} 7. Qd4 {[%clk 0:02:52.2]} 7... Qa5 {[%clk 0:02:44.4]} 8. Ne2 {[%clk
0:02:42.4]} 8... Nxc5 {[%clk 0:02:40.3]} 9. Qb4 {[%clk 0:02:35.1]} 9... Nc6
{[%clk 0:02:38]} 10. Qxa5 {[%clk 0:02:33.8]} 10... Nxa5 {[%clk 0:02:37.7]} 11.
g3 {[%clk 0:02:28.1]} 11... b6 {[%clk 0:02:37]} 12. Be3 {[%clk 0:02:21]} 12...
Bb7 {[%clk 0:02:35.6]} 13. Rg1 {[%clk 0:02:21.1]} 13... Rc8 {[%clk 0:02:33.9]}
14. f4 {[%clk 0:02:19.3]} 14... O-O {[%clk 0:02:30.8]} 15. O-O-O {[%clk
0:02:17.5]} 15... Rfd8 {[%clk 0:02:19.3]} 16. f5 {[%clk 0:02:03.5]} 16... Nc4
{[%clk 0:02:03.9]} 17. Bg5 {[%clk 0:02:00.4]} 17... Re8 {[%clk 0:01:56.5]} 18.
Bf4 {[%clk 0:01:52.3]} 18... Bf3 {[%clk 0:01:45.8]} 19. Rd4 {[%clk 0:01:42.5]}
19... b5 {[%clk 0:01:35.1]} 20. g4 {[%clk 0:01:41.4]} 20... f6 {[%clk
0:01:26.2]} 21. Rxc4 {[%clk 0:01:15.7]} 21... bxc4 {[%clk 0:01:24.1]} 22. Nd4
{[%clk 0:01:15.2]} 22... Bd5 {[%clk 0:01:21.8]} 23. g5 {[%clk 0:01:13.3]} 23...
fxe5 {[%clk 0:01:16.2]} 24. Bxe5 {[%clk 0:01:13.3]} 24... d6 {[%clk 0:01:12.5]}
25. Bf4 {[%clk 0:01:12.2]} 25... Ne4 {[%clk 0:01:08.2]} 26. Bh3 {[%clk
0:01:07.2]} 26... Rb8 {[%clk 0:00:57.4]} 27. Ne2 {[%clk 0:00:51.4]} 27... Nf2
{[%clk 0:00:41.5]} 28. Bg2 {[%clk 0:00:43.2]} 28... Bxg2 {[%clk 0:00:41.1]} 29.
Rxg2 {[%clk 0:00:43.1]} 29... Ne4 {[%clk 0:00:40.7]} 30. fxg6 {[%clk 0:00:37.3]}
30... hxg6 {[%clk 0:00:39.5]} 31. Rg4 {[%clk 0:00:34]} 31... Rf8 {[%clk
0:00:29.4]} 32. Ng3 {[%clk 0:00:31.9]} 32... Nf2 {[%clk 0:00:21.5]} 33. Rh4
{[%clk 0:00:31.5]} 33... e5 {[%clk 0:00:16.9]} 34. Be3 {[%clk 0:00:31]} 34...
Rbc8 {[%clk 0:00:15.9]} 35. Bxa7 {[%clk 0:00:24.9]} 35... Nh1 {[%clk 0:00:12.2]}
36. Ne4 {[%clk 0:00:22.1]} 1-0